[Event "Titled Tuesday Blitz February 07 Early 2023"]
[White "Cori T., Deysi"]
[Black "Kostiukov, Alexandr"]
[WhiteFideId "3801934"]
[BlackFideId "14108100"]
[WhiteElo "2362"]
[BlackElo "2271"]
[Result "1-0"]
[Round "04"]
[TimeControl "180+2"]
[Date "2023.02.07"]
[WhiteClock "0:00:06"]
[BlackClock "0:00:05"]

1. b3 {[%clk 0:03:00]}  Nf6 {[%clk 0:02:59]} 2. Bb2 {[%clk 0:03:00]}  g6 {[%clk 0:02:59]} 3. e4 {[%clk 0:03:00]}  Bg7 {[%clk 0:02:56]} 4. e5 {[%clk 0:03:00]}  Nd5 {[%clk 0:02:56]} 5. c4 {[%clk 0:03:00]}  Nf4 {[%clk 0:02:53]} 6. Qf3 {[%clk 0:02:57]}  Ne6 {[%clk 0:02:47]} 7. h4 {[%clk 0:02:56]}  h5 {[%clk 0:02:41]} 8. Nh3 {[%clk 0:02:56]}  d6 {[%clk 0:02:30]} 9. d4 {[%clk 0:02:24]}  dxe5 {[%clk 0:02:24]} 10. dxe5 {[%clk 0:02:24]}  Nc6 {[%clk 0:02:23]} 11. Qd5 {[%clk 0:02:17]}  Nxe5 {[%clk 0:02:07]} 12. Nc3 {[%clk 0:02:14]}  O-O {[%clk 0:01:48]} 13. O-O-O {[%clk 0:02:11]}  Qe8 {[%clk 0:01:39]} 14. Be2 {[%clk 0:02:06]}  c6 {[%clk 0:01:31]} 15. Qa5 {[%clk 0:02:06]}  b6 {[%clk 0:01:22]} 16. Qa3 {[%clk 0:02:06]}  c5 {[%clk 0:01:15]} 17. Nd5 {[%clk 0:02:05]}  Bb7 {[%clk 0:01:10]} 18. f4 {[%clk 0:02:04]}  Nc6 {[%clk 0:00:49]} 19. f5 {[%clk 0:02:04]}  Ned4 {[%clk 0:00:45]} 20. Bd3 {[%clk 0:02:04]}  Rc8 {[%clk 0:00:25]} 21. Ng5 {[%clk 0:01:44]}  Ne5 {[%clk 0:00:21]} 22. Bxd4 {[%clk 0:01:38]}  cxd4 {[%clk 0:00:18]} 23. Nxe7+ {[%clk 0:01:38]}  Kh8 {[%clk 0:00:17]} 24. Nxc8 {[%clk 0:01:36]}  Nxd3+ {[%clk 0:00:16]} 25. Rxd3 {[%clk 0:01:35]}  Bxc8 {[%clk 0:00:16]} 26. fxg6 {[%clk 0:01:30]}  fxg6 {[%clk 0:00:13]} 27. Qd6 {[%clk 0:01:30]}  Bf5 {[%clk 0:00:13]} 28. Rd2 {[%clk 0:01:29]}  Qe3 {[%clk 0:00:12]} 29. Rf1 {[%clk 0:00:53]}  Qc3+ {[%clk 0:00:12]} 30. Kd1 {[%clk 0:00:52]}  Qa1+ {[%clk 0:00:07]} 31. Ke2 {[%clk 0:00:52]}  d3+ {[%clk 0:00:04]} 32. Kf2 {[%clk 0:00:35]}  Bd4+ {[%clk 0:00:03]} 33. Kg3 {[%clk 0:00:35]}  Be5+ {[%clk 0:00:03]} 34. Kf2 {[%clk 0:00:26]}  Qxf1+ {[%clk 0:00:02]} 35. Kxf1 {[%clk 0:00:26]}  Bxd6 {[%clk 0:00:03]} 36. Rf2 {[%clk 0:00:24]}  Bg3 {[%clk 0:00:03]} 37. Rf3 {[%clk 0:00:23]}  d2 {[%clk 0:00:04]} 38. Ke2 {[%clk 0:00:23]}  Rd8 {[%clk 0:00:04]} 39. Nf7+ {[%clk 0:00:23]}  Kg7 {[%clk 0:00:04]} 40. Nxd8 {[%clk 0:00:24]}  Bg4 {[%clk 0:00:04]} 41. Kxd2 {[%clk 0:00:19]}  Bxh4 {[%clk 0:00:04]} 42. Rd3 {[%clk 0:00:12]}  Bg5+ {[%clk 0:00:05]} 43. Kc3 {[%clk 0:00:12]}  Bf5 {[%clk 0:00:06]} 44. Rd1 {[%clk 0:00:11]}  Bf6+ {[%clk 0:00:07]} 45. Kb4 {[%clk 0:00:10]}  Be7+ {[%clk 0:00:07]} 46. Kb5 {[%clk 0:00:10]}  g5 {[%clk 0:00:08]} 47. Nc6 {[%clk 0:00:10]}  Bc5 {[%clk 0:00:08]} 48. Nxa7 {[%clk 0:00:08]}  h4 {[%clk 0:00:07]} 49. b4 {[%clk 0:00:08]}  Bf2 {[%clk 0:00:07]} 50. Rf1 {[%clk 0:00:08]}  Bd7+ {[%clk 0:00:05]} 51. Ka6 {[%clk 0:00:07]}  Bg3 {[%clk 0:00:04]} 52. Kxb6 {[%clk 0:00:05]}  g4 {[%clk 0:00:04]} 53. c5 {[%clk 0:00:06]}  h3 {[%clk 0:00:04]} 54. gxh3 {[%clk 0:00:06]}  gxh3 {[%clk 0:00:05]} 55. c6 {[%clk 0:00:06]}  h2 {[%clk 0:00:05]} 56. cxd7 {[%clk 0:00:06]} 1-0


[Site "https://www.chess.com"]

[Event "Titled Tuesday Blitz February 07 Early 2023"]
[White "Rottenwohrer Suarez, Juan"]
[Black "Ambartsumova, Karina"]
[WhiteFideId "32068182"]
[BlackFideId "4166299"]
[WhiteElo "2265"]
[BlackElo "2393"]
[Result "0-1"]
[Round "04"]
[TimeControl "180+2"]
[Date "2023.02.07"]
[WhiteClock "0:00:06"]
[BlackClock "0:00:21"]

1. c4 {[%clk 0:02:59]}  e6 {[%clk 0:02:58]} 2. Nf3 {[%clk 0:02:58]}  d5 {[%clk 0:02:59]} 3. b3 {[%clk 0:02:56]}  Nf6 {[%clk 0:02:58]} 4. Bb2 {[%clk 0:02:55]}  Be7 {[%clk 0:02:59]} 5. g3 {[%clk 0:02:56]}  b6 {[%clk 0:02:59]} 6. Bg2 {[%clk 0:02:56]}  Bb7 {[%clk 0:03:00]} 7. O-O {[%clk 0:02:56]}  O-O {[%clk 0:03:00]} 8. cxd5 {[%clk 0:02:52]}  exd5 {[%clk 0:02:53]} 9. Ne5 {[%clk 0:02:43]}  Nbd7 {[%clk 0:02:50]} 10. Nxd7 {[%clk 0:02:43]}  Qxd7 {[%clk 0:02:50]} 11. d3 {[%clk 0:02:39]}  c5 {[%clk 0:02:48]} 12. Nd2 {[%clk 0:02:39]}  d4 {[%clk 0:02:47]} 13. Nf3 {[%clk 0:02:27]}  Rad8 {[%clk 0:02:45]} 14. a3 {[%clk 0:02:22]}  a5 {[%clk 0:02:33]} 15. b4 {[%clk 0:02:03]}  axb4 {[%clk 0:02:30]} 16. axb4 {[%clk 0:02:03]}  Bxf3 {[%clk 0:02:29]} 17. Bxf3 {[%clk 0:01:59]}  cxb4 {[%clk 0:02:29]} 18. Qb3 {[%clk 0:01:56]}  Bc5 {[%clk 0:02:26]} 19. Ra6 {[%clk 0:01:46]}  Nd5 {[%clk 0:02:21]} 20. Rfa1 {[%clk 0:01:44]}  Nc3 {[%clk 0:02:06]} 21. Kg2 {[%clk 0:01:41]}  Qf5 {[%clk 0:01:59]} 22. Ra7 {[%clk 0:01:34]}  h5 {[%clk 0:01:55]} 23. h4 {[%clk 0:01:27]}  g6 {[%clk 0:01:44]} 24. Rb7 {[%clk 0:01:23]}  Rd7 {[%clk 0:01:41]} 25. Raa7 {[%clk 0:01:18]}  Rfd8 {[%clk 0:01:37]} 26. Bc1 {[%clk 0:01:13]}  Rxb7 {[%clk 0:01:27]} 27. Rxb7 {[%clk 0:01:13]}  Kg7 {[%clk 0:01:10]} 28. Bf4 {[%clk 0:01:03]}  Re8 {[%clk 0:01:08]} 29. Qb2 {[%clk 0:00:26]}  Qe6 {[%clk 0:01:02]} 30. Bd2 {[%clk 0:00:08]}  Nxe2 {[%clk 0:00:53]} 31. Bxb4 {[%clk 0:00:08]}  Qe5 {[%clk 0:00:24]} 32. Qd2 {[%clk 0:00:08]}  Nc3 {[%clk 0:00:22]} 33. Bxc5 {[%clk 0:00:07]}  bxc5 {[%clk 0:00:22]} 34. Qc2 {[%clk 0:00:06]}  Re7 {[%clk 0:00:22]} 35. Rb8 {[%clk 0:00:06]}  Qxb8 {[%clk 0:00:21]} 0-1


[Site "https://www.chess.com"]

[Event "Titled Tuesday Blitz February 07 Early 2023"]
[White "Sarkar, Justin"]
[Black "Poliakova, Varvara"]
[WhiteFideId "2010011"]
[BlackFideId "13518313"]
[WhiteElo "2309"]
[BlackElo "2010"]
[Result "0-1"]
[Round "04"]
[TimeControl "180+2"]
[Date "2023.02.07"]
[WhiteClock "0:00:01"]
[BlackClock "0:02:09"]

1. e4 {[%clk 0:02:53]}  e5 {[%clk 0:02:59]} 2. Nf3 {[%clk 0:02:41]}  Nc6 {[%clk 0:02:57]} 3. Bc4 {[%clk 0:02:31]}  Bc5 {[%clk 0:02:55]} 4. d3 {[%clk 0:02:25]}  Nf6 {[%clk 0:02:53]} 5. Bg5 {[%clk 0:02:25]}  h6 {[%clk 0:02:53]} 6. Bh4 {[%clk 0:02:23]}  d6 {[%clk 0:02:52]} 7. Nbd2 {[%clk 0:02:16]}  a6 {[%clk 0:02:52]} 8. a4 {[%clk 0:02:12]}  Ba7 {[%clk 0:02:51]} 9. c3 {[%clk 0:02:07]}  Be6 {[%clk 0:02:49]} 10. Bxe6 {[%clk 0:01:55]}  fxe6 {[%clk 0:02:48]} 11. Qb3 {[%clk 0:01:52]}  Qd7 {[%clk 0:02:43]} 12. Bxf6 {[%clk 0:01:39]}  gxf6 {[%clk 0:02:44]} 13. Qxb7 {[%clk 0:01:32]}  Rb8 {[%clk 0:02:42]} 14. Qxa6 {[%clk 0:01:31]}  Rxb2 {[%clk 0:02:42]} 15. O-O {[%clk 0:01:28]}  Rg8 {[%clk 0:02:38]} 16. Rfb1 {[%clk 0:01:12]}  Rxb1+ {[%clk 0:02:34]} 17. Rxb1 {[%clk 0:01:11]}  Ke7 {[%clk 0:02:33]} 18. Nf1 {[%clk 0:00:53]}  f5 {[%clk 0:02:30]} 19. a5 {[%clk 0:00:46]}  Bc5 {[%clk 0:02:26]} 20. exf5 {[%clk 0:00:33]}  exf5 {[%clk 0:02:23]} 21. Qc4 {[%clk 0:00:33]}  Qe6 {[%clk 0:02:20]} 22. Qh4+ {[%clk 0:00:29]}  Qf6 {[%clk 0:02:19]} 23. Qxf6+ {[%clk 0:00:24]}  Kxf6 {[%clk 0:02:20]} 24. a6 {[%clk 0:00:24]}  Ra8 {[%clk 0:02:18]} 25. Ra1 {[%clk 0:00:21]}  Nb8 {[%clk 0:02:17]} 26. d4 {[%clk 0:00:19]}  Bb6 {[%clk 0:02:16]} 27. Ne3 {[%clk 0:00:16]}  Ke6 {[%clk 0:02:15]} 28. Nh4 {[%clk 0:00:05]}  f4 {[%clk 0:02:14]} 29. Nc4 {[%clk 0:00:05]}  Rxa6 {[%clk 0:02:10]} 30. Rxa6 {[%clk 0:00:04]}  Nxa6 {[%clk 0:02:11]} 31. dxe5 {[%clk 0:00:04]}  dxe5 {[%clk 0:02:11]} 32. Nxb6 {[%clk 0:00:03]}  cxb6 {[%clk 0:02:11]} 33. Kf1 {[%clk 0:00:03]}  Kd5 {[%clk 0:02:09]} 34. Ke2 {[%clk 0:00:03]}  Nc5 {[%clk 0:02:09]} 35. Nf3 {[%clk 0:00:01]}  Ne4 {[%clk 0:02:09]} 0-1


[Site "https://www.chess.com"]

[Event "Titled Tuesday Blitz February 07 Early 2023"]
[White "Kopczynski, Michal"]
[Black "Krzywda, Andrzej"]
[WhiteFideId "1124200"]
[BlackFideId "1114565"]
[WhiteElo "2225"]
[BlackElo "2223"]
[Result "1-0"]
[Round "04"]
[TimeControl "180+2"]
[Date "2023.02.07"]
[WhiteClock "0:00:32"]
[BlackClock "0:00:01"]

1. e4 {[%clk 0:03:00]}  c5 {[%clk 0:03:00]} 2. d4 {[%clk 0:03:01]}  cxd4 {[%clk 0:03:00]} 3. c3 {[%clk 0:03:01]}  Nf6 {[%clk 0:03:00]} 4. Bd3 {[%clk 0:03:00]}  dxc3 {[%clk 0:02:53]} 5. Nxc3 {[%clk 0:03:01]}  Nc6 {[%clk 0:02:52]} 6. f4 {[%clk 0:03:01]}  d6 {[%clk 0:02:47]} 7. Nf3 {[%clk 0:03:02]}  e6 {[%clk 0:02:43]} 8. O-O {[%clk 0:03:02]}  Be7 {[%clk 0:02:44]} 9. Kh1 {[%clk 0:03:03]}  O-O {[%clk 0:02:44]} 10. Qe1 {[%clk 0:03:04]}  a6 {[%clk 0:02:42]} 11. Be3 {[%clk 0:03:04]}  b5 {[%clk 0:02:42]} 12. Rd1 {[%clk 0:03:04]}  Qc7 {[%clk 0:02:42]} 13. Qg3 {[%clk 0:03:02]}  Bb7 {[%clk 0:02:41]} 14. e5 {[%clk 0:03:01]}  Nh5 {[%clk 0:02:29]} 15. Qg4 {[%clk 0:02:54]}  g6 {[%clk 0:02:29]} 16. exd6 {[%clk 0:02:46]}  Bxd6 {[%clk 0:02:29]} 17. Ne4 {[%clk 0:02:46]}  Be7 {[%clk 0:02:17]} 18. Neg5 {[%clk 0:02:38]}  Nb4 {[%clk 0:02:06]} 19. Nxh7 {[%clk 0:02:15]}  Nd5 {[%clk 0:01:28]} 20. Bd4 {[%clk 0:01:55]}  Qxf4 {[%clk 0:01:16]} 21. Qxf4 {[%clk 0:01:54]}  Nhxf4 {[%clk 0:01:12]} 22. Nxf8 {[%clk 0:01:54]}  Rxf8 {[%clk 0:01:06]} 23. Be4 {[%clk 0:01:44]}  f5 {[%clk 0:00:42]} 24. Bc2 {[%clk 0:01:42]}  Rc8 {[%clk 0:00:28]} 25. Bb3 {[%clk 0:01:41]}  Bc5 {[%clk 0:00:21]} 26. Bxc5 {[%clk 0:01:25]}  Rxc5 {[%clk 0:00:22]} 27. Rc1 {[%clk 0:01:25]}  Rxc1 {[%clk 0:00:16]} 28. Rxc1 {[%clk 0:01:26]}  Ne3 {[%clk 0:00:11]} 29. Rc7 {[%clk 0:01:21]}  Be4 {[%clk 0:00:11]} 30. Kg1 {[%clk 0:00:56]}  Nexg2 {[%clk 0:00:09]} 31. Kf2 {[%clk 0:00:55]}  Kf8 {[%clk 0:00:02]} 32. Ng5 {[%clk 0:00:40]}  Nh4 {[%clk 0:00:01]} 33. Nxe4 {[%clk 0:00:36]}  fxe4 {[%clk 0:00:01]} 34. Kg3 {[%clk 0:00:32]} 1-0


[Site "https://www.chess.com"]

[Event "Titled Tuesday Blitz February 07 Early 2023"]
[White "Carrasco Miranda, Andres"]
[Black "Decuigniere, Tom"]
[WhiteFideId "3405990"]
[BlackFideId "26093820"]
[WhiteElo "2240"]
[BlackElo "2382"]
[Result "0-1"]
[Round "04"]
[TimeControl "180+2"]
[Date "2023.02.07"]
[WhiteClock "0:00:06"]
[BlackClock "0:00:06"]

1. d4 {[%clk 0:03:00]}  Nf6 {[%clk 0:03:00]} 2. c4 {[%clk 0:03:00]}  e6 {[%clk 0:03:00]} 3. g3 {[%clk 0:03:00]}  Bb4+ {[%clk 0:03:00]} 4. Nd2 {[%clk 0:03:00]}  O-O {[%clk 0:03:00]} 5. Bg2 {[%clk 0:03:00]}  d5 {[%clk 0:03:00]} 6. Nf3 {[%clk 0:03:01]}  dxc4 {[%clk 0:03:00]} 7. Qc2 {[%clk 0:02:58]}  Nc6 {[%clk 0:02:59]} 8. e3 {[%clk 0:02:57]}  a6 {[%clk 0:02:55]} 9. Qxc4 {[%clk 0:02:53]}  Bd6 {[%clk 0:02:54]} 10. O-O {[%clk 0:02:53]}  e5 {[%clk 0:02:53]} 11. Rd1 {[%clk 0:02:49]}  exd4 {[%clk 0:02:53]} 12. Nxd4 {[%clk 0:02:50]}  Nxd4 {[%clk 0:02:51]} 13. Qxd4 {[%clk 0:02:51]}  Qe7 {[%clk 0:02:48]} 14. Nc4 {[%clk 0:02:50]}  Bc5 {[%clk 0:02:47]} 15. Qe5 {[%clk 0:02:48]}  Be6 {[%clk 0:02:38]} 16. b3 {[%clk 0:02:40]}  c6 {[%clk 0:02:29]} 17. Bb2 {[%clk 0:02:38]}  Rfd8 {[%clk 0:02:12]} 18. Qg5 {[%clk 0:02:38]}  Rxd1+ {[%clk 0:01:24]} 19. Rxd1 {[%clk 0:02:39]}  Rd8 {[%clk 0:01:25]} 20. Rxd8+ {[%clk 0:02:34]}  Qxd8 {[%clk 0:01:25]} 21. h3 {[%clk 0:01:43]}  Be7 {[%clk 0:01:22]} 22. Bd4 {[%clk 0:01:15]}  h6 {[%clk 0:01:19]} 23. Qa5 {[%clk 0:01:12]}  Bxc4 {[%clk 0:01:07]} 24. Qxd8+ {[%clk 0:01:11]}  Bxd8 {[%clk 0:01:08]} 25. bxc4 {[%clk 0:01:11]}  Kf8 {[%clk 0:01:08]} 26. e4 {[%clk 0:01:03]}  Nd7 {[%clk 0:01:07]} 27. f4 {[%clk 0:00:56]}  Bb6 {[%clk 0:01:06]} 28. Bxb6 {[%clk 0:00:56]}  Nxb6 {[%clk 0:01:07]} 29. Bf1 {[%clk 0:00:56]}  Ke7 {[%clk 0:01:07]} 30. Kf2 {[%clk 0:00:56]}  Kd6 {[%clk 0:01:07]} 31. Ke3 {[%clk 0:00:54]}  c5 {[%clk 0:01:06]} 32. e5+ {[%clk 0:00:54]}  Kc6 {[%clk 0:01:00]} 33. Bg2+ {[%clk 0:00:52]}  Kc7 {[%clk 0:01:01]} 34. Kd3 {[%clk 0:00:49]}  Nc8 {[%clk 0:00:47]} 35. Bd5 {[%clk 0:00:48]}  f6 {[%clk 0:00:47]} 36. e6 {[%clk 0:00:46]}  Ne7 {[%clk 0:00:47]} 37. Ke4 {[%clk 0:00:42]}  b5 {[%clk 0:00:46]} 38. g4 {[%clk 0:00:39]}  Kd6 {[%clk 0:00:45]} 39. f5 {[%clk 0:00:34]}  a5 {[%clk 0:00:33]} 40. Kd3 {[%clk 0:00:30]}  b4 {[%clk 0:00:32]} 41. Bf3 {[%clk 0:00:26]}  Nc8 {[%clk 0:00:26]} 42. Bd1 {[%clk 0:00:26]}  Nb6 {[%clk 0:00:26]} 43. h4 {[%clk 0:00:21]}  Nc8 {[%clk 0:00:22]} 44. Ba4 {[%clk 0:00:18]}  Ke5 {[%clk 0:00:18]} 45. Bd1 {[%clk 0:00:16]}  Kf4 {[%clk 0:00:15]} 46. Kc2 {[%clk 0:00:14]}  a4 {[%clk 0:00:13]} 47. Kd3 {[%clk 0:00:13]}  Ne7 {[%clk 0:00:07]} 48. Ke2 {[%clk 0:00:09]}  Kxg4 {[%clk 0:00:07]} 49. Ke3+ {[%clk 0:00:08]}  Kxf5 {[%clk 0:00:06]} 50. Bxa4 {[%clk 0:00:08]}  Kxe6 {[%clk 0:00:07]} 51. Kf4 {[%clk 0:00:08]}  g5+ {[%clk 0:00:07]} 52. hxg5 {[%clk 0:00:08]}  hxg5+ {[%clk 0:00:08]} 53. Kg4 {[%clk 0:00:09]}  Ng6 {[%clk 0:00:07]} 54. Bc2 {[%clk 0:00:08]}  Ne5+ {[%clk 0:00:08]} 55. Kg3 {[%clk 0:00:08]}  Nxc4 {[%clk 0:00:09]} 56. Bb3 {[%clk 0:00:08]}  Kd5 {[%clk 0:00:08]} 57. Kg4 {[%clk 0:00:08]}  Kd4 {[%clk 0:00:07]} 58. Kf5 {[%clk 0:00:08]}  Na5 {[%clk 0:00:07]} 59. Be6 {[%clk 0:00:06]}  c4 {[%clk 0:00:06]} 60. Kxf6 {[%clk 0:00:07]}  c3 {[%clk 0:00:06]} 61. Bf5 {[%clk 0:00:06]}  g4 {[%clk 0:00:06]} 62. Kg5 {[%clk 0:00:06]}  g3 {[%clk 0:00:06]} 0-1


[Site "https://www.chess.com"]

[Event "Titled Tuesday Blitz February 07 Early 2023"]
[White "Nunez V, Gustavo Eduardo"]
[Black "Brilej, Jaka"]
[WhiteFideId "4403690"]
[BlackFideId "14618818"]
[WhiteElo "2212"]
[BlackElo "2321"]
[Result "0-1"]
[Round "04"]
[TimeControl "180+2"]
[Date "2023.02.07"]
[WhiteClock "0:00:03"]
[BlackClock "0:01:05"]

1. e4 {[%clk 0:02:15]}  d6 {[%clk 0:02:58]} 2. Nc3 {[%clk 0:02:15]}  Nf6 {[%clk 0:02:57]} 3. g3 {[%clk 0:02:16]}  c5 {[%clk 0:02:54]} 4. Bg2 {[%clk 0:02:17]}  Nc6 {[%clk 0:02:54]} 5. f4 {[%clk 0:02:15]}  g6 {[%clk 0:02:54]} 6. Nf3 {[%clk 0:02:16]}  Bg7 {[%clk 0:02:54]} 7. O-O {[%clk 0:02:17]}  O-O {[%clk 0:02:54]} 8. d3 {[%clk 0:02:17]}  Rb8 {[%clk 0:02:53]} 9. h3 {[%clk 0:02:18]}  b5 {[%clk 0:02:53]} 10. Be3 {[%clk 0:02:18]}  b4 {[%clk 0:02:52]} 11. Ne2 {[%clk 0:02:18]}  a5 {[%clk 0:02:52]} 12. b3 {[%clk 0:02:09]}  a4 {[%clk 0:02:43]} 13. Rb1 {[%clk 0:02:03]}  axb3 {[%clk 0:02:40]} 14. axb3 {[%clk 0:02:03]}  Bb7 {[%clk 0:02:37]} 15. g4 {[%clk 0:02:01]}  Nd7 {[%clk 0:02:37]} 16. d4 {[%clk 0:01:58]}  e5 {[%clk 0:02:19]} 17. fxe5 {[%clk 0:01:37]}  cxd4 {[%clk 0:02:19]} 18. Nexd4 {[%clk 0:01:31]}  dxe5 {[%clk 0:02:13]} 19. Nb5 {[%clk 0:01:20]}  Ba6 {[%clk 0:01:59]} 20. Nd6 {[%clk 0:01:19]}  Bxf1 {[%clk 0:01:57]} 21. Bxf1 {[%clk 0:01:20]}  Nd4 {[%clk 0:01:37]} 22. Nxd4 {[%clk 0:01:12]}  exd4 {[%clk 0:01:38]} 23. Bxd4 {[%clk 0:01:12]}  Ne5 {[%clk 0:01:38]} 24. Bc5 {[%clk 0:01:02]}  Qc7 {[%clk 0:01:31]} 25. Qd5 {[%clk 0:00:55]}  Rfd8 {[%clk 0:01:25]} 26. Be2 {[%clk 0:00:35]}  Rbc8 {[%clk 0:01:20]} 27. Bxb4 {[%clk 0:00:18]}  Qb6+ {[%clk 0:01:19]} 28. Kf1 {[%clk 0:00:08]}  Qxb4 {[%clk 0:01:17]} 29. Rd1 {[%clk 0:00:03]}  Rc6 {[%clk 0:01:07]} 30. c4 {[%clk 0:00:04]}  Rcxd6 {[%clk 0:01:06]} 31. Qb7 {[%clk 0:00:02]}  Rxd1+ {[%clk 0:01:05]} 32. Bxd1 {[%clk 0:00:02]}  Rxd1+ {[%clk 0:01:05]} 33. Ke2 {[%clk 0:00:03]}  Qe1# {[%clk 0:01:05]} 0-1


[Site "https://www.chess.com"]

[Event "Titled Tuesday Blitz February 07 Early 2023"]
[White "Kumala, Aleksander"]
[Black "Mrudul Dehankar"]
[WhiteFideId "1141880"]
[BlackFideId "25096990"]
[WhiteElo "2165"]
[BlackElo "2030"]
[Result "1-0"]
[Round "04"]
[TimeControl "180+2"]
[Date "2023.02.07"]
[WhiteClock "0:00:13"]
[BlackClock "0:00:02"]

1. d4 {[%clk 0:03:00]}  Nf6 {[%clk 0:02:56]} 2. Bg5 {[%clk 0:03:00]}  c5 {[%clk 0:02:45]} 3. d5 {[%clk 0:03:00]}  Ne4 {[%clk 0:02:45]} 4. h4 {[%clk 0:02:59]}  Qb6 {[%clk 0:02:40]} 5. Nd2 {[%clk 0:02:59]}  Nxg5 {[%clk 0:02:18]} 6. hxg5 {[%clk 0:03:00]}  Qxb2 {[%clk 0:02:18]} 7. g6 {[%clk 0:03:00]}  fxg6 {[%clk 0:02:12]} 8. e3 {[%clk 0:02:59]}  e6 {[%clk 0:01:26]} 9. dxe6 {[%clk 0:02:52]}  d5 {[%clk 0:01:13]} 10. Bd3 {[%clk 0:02:51]}  Qf6 {[%clk 0:01:10]} 11. c4 {[%clk 0:02:48]}  Bxe6 {[%clk 0:01:07]} 12. cxd5 {[%clk 0:02:43]}  Bxd5 {[%clk 0:01:07]} 13. Ne4 {[%clk 0:02:35]}  Qb6 {[%clk 0:01:05]} 14. Rb1 {[%clk 0:02:29]}  Qa5+ {[%clk 0:01:04]} 15. Kf1 {[%clk 0:02:29]}  c4 {[%clk 0:00:55]} 16. Bc2 {[%clk 0:02:18]}  Nc6 {[%clk 0:00:53]} 17. Qg4 {[%clk 0:01:57]}  Qxa2 {[%clk 0:00:17]} 18. Rxb7 {[%clk 0:00:33]}  Ne5 {[%clk 0:00:16]} 19. Qf4 {[%clk 0:00:34]}  Qa1+ {[%clk 0:00:14]} 20. Rb1 {[%clk 0:00:33]}  Qa6 {[%clk 0:00:05]} 21. Qxe5+ {[%clk 0:00:33]}  Be6 {[%clk 0:00:05]} 22. Nc5 {[%clk 0:00:25]}  Bxc5 {[%clk 0:00:04]} 23. Qxc5 {[%clk 0:00:23]}  Kf7 {[%clk 0:00:04]} 24. Qc7+ {[%clk 0:00:20]}  Kf6 {[%clk 0:00:03]} 25. Ne2 {[%clk 0:00:17]}  Rac8 {[%clk 0:00:02]} 26. Qf4+ {[%clk 0:00:16]}  Ke7 {[%clk 0:00:03]} 27. Qd4 {[%clk 0:00:15]}  Kf7 {[%clk 0:00:03]} 28. Qf4+ {[%clk 0:00:14]}  Ke7 {[%clk 0:00:02]} 29. Rd1 {[%clk 0:00:14]}  c3 {[%clk 0:00:02]} 30. Qd4 {[%clk 0:00:12]}  Rcd8 {[%clk 0:00:02]} 31. Qxg7+ {[%clk 0:00:12]}  Bf7 {[%clk 0:00:02]} 32. Rxd8 {[%clk 0:00:10]}  Rxd8 {[%clk 0:00:03]} 33. g3 {[%clk 0:00:09]}  Rd2 {[%clk 0:00:02]} 34. Qe5+ {[%clk 0:00:06]}  Qe6 {[%clk 0:00:02]} 35. Qxe6+ {[%clk 0:00:06]}  Kxe6 {[%clk 0:00:02]} 36. Bb3+ {[%clk 0:00:06]}  Ke7 {[%clk 0:00:01]} 37. Bxf7 {[%clk 0:00:07]}  Rd1+ {[%clk 0:00:01]} 38. Kg2 {[%clk 0:00:07]}  c2 {[%clk 0:00:02]} 39. Bb3 {[%clk 0:00:05]}  Rd2 {[%clk 0:00:02]} 40. Rc1 {[%clk 0:00:05]}  Rxe2 {[%clk 0:00:01]} 41. Bxc2 {[%clk 0:00:05]}  Rd2 {[%clk 0:00:01]} 42. Kf3 {[%clk 0:00:06]}  a5 {[%clk 0:00:02]} 43. Be4 {[%clk 0:00:06]}  a4 {[%clk 0:00:01]} 44. Rc7+ {[%clk 0:00:06]}  Kf6 {[%clk 0:00:02]} 45. Rxh7 {[%clk 0:00:07]}  a3 {[%clk 0:00:02]} 46. Ra7 {[%clk 0:00:08]}  a2 {[%clk 0:00:03]} 47. Bd5 {[%clk 0:00:08]}  Rxd5 {[%clk 0:00:03]} 48. Rxa2 {[%clk 0:00:09]}  Rf5+ {[%clk 0:00:03]} 49. Kg2 {[%clk 0:00:09]}  Rd5 {[%clk 0:00:04]} 50. Ra6+ {[%clk 0:00:09]}  Kf7 {[%clk 0:00:03]} 51. Kf3 {[%clk 0:00:10]}  Rf5+ {[%clk 0:00:03]} 52. Ke2 {[%clk 0:00:09]}  Rd5 {[%clk 0:00:03]} 53. g4 {[%clk 0:00:10]}  Rd8 {[%clk 0:00:03]} 54. f4 {[%clk 0:00:10]}  Rc8 {[%clk 0:00:03]} 55. Kf3 {[%clk 0:00:11]}  Re8 {[%clk 0:00:03]} 56. Ra7+ {[%clk 0:00:10]}  Kf6 {[%clk 0:00:03]} 57. g5+ {[%clk 0:00:10]}  Ke6 {[%clk 0:00:02]} 58. Ra6+ {[%clk 0:00:11]}  Kf7 {[%clk 0:00:03]} 59. Rf6+ {[%clk 0:00:11]}  Kg7 {[%clk 0:00:03]} 60. e4 {[%clk 0:00:11]}  Rc8 {[%clk 0:00:03]} 61. Ra6 {[%clk 0:00:11]}  Rc3+ {[%clk 0:00:03]} 62. Kg4 {[%clk 0:00:11]}  Rc1 {[%clk 0:00:03]} 63. Ra7+ {[%clk 0:00:12]}  Kf8 {[%clk 0:00:03]} 64. f5 {[%clk 0:00:12]}  Rg1+ {[%clk 0:00:01]} 65. Kf4 {[%clk 0:00:13]}  Rf1+ {[%clk 0:00:02]} 66. Ke5 {[%clk 0:00:13]}  gxf5 {[%clk 0:00:02]} 67. exf5 {[%clk 0:00:14]}  Rb1 {[%clk 0:00:02]} 68. g6 {[%clk 0:00:13]}  Rb5+ {[%clk 0:00:01]} 69. Kf6 {[%clk 0:00:13]}  Rb6+ {[%clk 0:00:02]} 70. Kg5 {[%clk 0:00:13]}  Kg8 {[%clk 0:00:02]} 71. Ra8+ {[%clk 0:00:12]}  Kg7 {[%clk 0:00:02]} 72. f6+ {[%clk 0:00:12]}  Rxf6 {[%clk 0:00:02]} 73. Ra7+ {[%clk 0:00:13]} 1-0


[Site "https://www.chess.com"]

[Event "Titled Tuesday Blitz February 07 Early 2023"]
[White "Chakravarthi Reddy, M"]
[Black "Berezin, Viktor"]
[WhiteFideId "25009532"]
[BlackFideId "14107872"]
[WhiteElo "2279"]
[BlackElo "2307"]
[Result "0-1"]
[Round "04"]
[TimeControl "180+2"]
[Date "2023.02.07"]
[WhiteClock "0:00:33"]
[BlackClock "0:01:41"]

1. c4 {[%clk 0:02:50]}  Nf6 {[%clk 0:02:57]} 2. Nc3 {[%clk 0:02:48]}  g6 {[%clk 0:02:57]} 3. d4 {[%clk 0:02:45]}  d6 {[%clk 0:02:56]} 4. e4 {[%clk 0:02:45]}  Bg7 {[%clk 0:02:57]} 5. Nf3 {[%clk 0:02:45]}  O-O {[%clk 0:02:57]} 6. Be2 {[%clk 0:02:46]}  e5 {[%clk 0:02:57]} 7. O-O {[%clk 0:02:47]}  Na6 {[%clk 0:02:58]} 8. dxe5 {[%clk 0:02:45]}  dxe5 {[%clk 0:02:58]} 9. Qc2 {[%clk 0:02:43]}  Qe8 {[%clk 0:02:51]} 10. a3 {[%clk 0:02:41]}  c6 {[%clk 0:02:50]} 11. h3 {[%clk 0:02:35]}  Nh5 {[%clk 0:02:41]} 12. Rd1 {[%clk 0:02:32]}  Nf4 {[%clk 0:02:39]} 13. Bxf4 {[%clk 0:02:32]}  exf4 {[%clk 0:02:39]} 14. b4 {[%clk 0:02:29]}  Qe7 {[%clk 0:02:37]} 15. b5 {[%clk 0:02:22]}  Nc5 {[%clk 0:02:36]} 16. Rab1 {[%clk 0:02:13]}  Bd7 {[%clk 0:02:21]} 17. Nd2 {[%clk 0:02:04]}  Ne6 {[%clk 0:02:16]} 18. Nb3 {[%clk 0:02:00]}  Rfd8 {[%clk 0:02:13]} 19. Rd2 {[%clk 0:01:36]}  Bh6 {[%clk 0:02:07]} 20. f3 {[%clk 0:01:35]}  Bg7 {[%clk 0:02:02]} 21. Rbd1 {[%clk 0:01:35]}  Be8 {[%clk 0:01:58]} 22. Na4 {[%clk 0:01:16]}  Rxd2 {[%clk 0:01:54]} 23. Qxd2 {[%clk 0:01:14]}  Qxa3 {[%clk 0:01:45]} 24. Nb6 {[%clk 0:00:33]}  axb6 {[%clk 0:01:41]} 0-1


[Site "https://www.chess.com"]